[Event "WR Chess Masters Cup 2024"]
[Site "London"]
[Date "2024.10.14"]
[Round "1.2"]
[White "Sivanandan, Bodhana"]
[Black "Erigaisi Arjun"]
[Result "0-1"]
[ECO "B06"]
[WhiteElo "2088"]
[BlackElo "2797"]
[Annotator "TA"]
[PlyCount "100"]
[EventDate "2024.10.12"]
[EventType "k.o."]
[EventCountry "ENG"]
[SourceTitle "playchess.com"]
[Source "ChessBase"]
[SourceQuality "1"]
[TimeControl "30/3600:20/1800:1800"]

{[%evp 9,99,37,49,36,54,10,16,0,7,0,0,0,0,0,0,0,0,-7,-15,-463,-450,-441,-250,-256,-268,-264,-267,-258,-258,-264,-265,-249,-245,-337,-351,-323,-306,-321,-323,-350,-360,-450,-371,-447,-453,-447,-440,-450,-441,-434,-394,-670,-676,-678,-682,-807,-807,-758,-737,-1748,-1645,-5907,-5854,-29981,-29982,-29982,-29983,-29983,-29984,-29984,-29985,-29985,-29986,-29985,-29986,-29986,-29987,-29987,-29988,-29989,-29990,-29992,-29993,-29995,-29996,-29996,-29997,-29997,-29998,-29998,-29999,-29999]} 1. e4 {[%emt 0:00:03]} g6 {[%emt 0:00:18]} 2. d4 {[%emt 0:00:25]} d6 {[%emt 0:00:07]} 3. Nc3 {[%emt 0:00:21]} Bg7 {[%emt 0:00:06]} 4. Be3 {[%emt 0:00:53]} c6 {[%emt 0:00:06]} 5. Qd2 {[%emt 0:00:50]} b5 {[%emt 0:00:31]} 6. a3 {[%emt 0:00:46][%cal Ba2a3,Ba3a4][%mdl 32]} Bb7 {[%emt 0:00:27]} 7. f3 {[%emt 0:01:47]} Nd7 {[%emt 0:00:08]} 8. Bd3 {[%emt 0:01:56] The position is equal.} a6 {[%emt 0:00:36]} 9. a4 {[%emt 0:03:51]} Ngf6 {[%emt 0:02:19]} 10. Nge2 {[%emt 0:01:31]} e5 {[%emt 0:00:39]} 11. O-O {[%emt 0:03:42][%cal Ra4b5]} O-O {[%emt 0:01:04]} 12. axb5 {[%emt 0:03:24]} axb5 {[%emt 0:00:11]} 13. dxe5 {[%emt 0:01:49]} Nxe5 {[%emt 0:00:07][%cal Bd7e5,Be5g4,Bg4f2][%mdl 32]} 14. Bh6 $2 {[%emt 0:02:14][%mdl 8192] White does not recover from this.} (14. b4 $11 {and White stays safe.}) 14... Bxh6 {[%emt 0:02:24]} 15. Qxh6 {[%emt 0:00:16]} Qb6+ {[%emt 0:00:05]} (15... Rxa1 $142 16. Rxa1 Nfg4 17. fxg4 Nxg4) 16. Kh1 $19 {[%emt 0:01:43]} Rxa1 {[%emt 0:00:08]} 17. Rxa1 {[%emt 0:00:27] [#]} Nfg4 $1 {[%emt 0:00:10][%mdl 512]} 18. fxg4 {[%emt 0:05:28]} Nxg4 {[%emt 0:00:07] ( -> ...Nf2+)} 19. Qh4 {[%emt 0:02:49]} Nf2+ {[%emt 0:00:06]} 20. Kg1 {[%emt 0:00:20]} Nxd3+ {[%emt 0:00:05]} 21. Kf1 {[%emt 0:01:12]} Nxb2 {[%emt 0:00:09]} 22. Qf2 {[%emt 0:01:43]} Qxf2+ {[%emt 0:00:39]} 23. Kxf2 {[%emt 0:00:03]} Ra8 {[%emt 0:00:29]} 24. Rxa8+ {[%emt 0:02:54]} Bxa8 {[%emt 0:00:07][%mdl 4096] Endgame. KBN-KNN} 25. g3 {[%emt 0:00:42]} Kg7 {[%emt 0:00:37]} 26. Ng1 {[%emt 0:05:13]} b4 {[%emt 0:00:17]} 27. Nb1 {[%emt 0:01:22]} Nc4 {[%emt 0:00:07] Wards off Nd2} 28. Nf3 {[%emt 0:01:03]} Na3 {[%emt 0:00:09]} (28... c5 29. Nbd2 Na3 30. e5 $19) 29. Nbd2 {[%emt 0:01:23]} Nxc2 {[%emt 0:00:24]} 30. Ke2 $2 {[%emt 0:00:00]} (30. e5 dxe5 31. Nxe5) 30... c5 {[%emt 0:00:00]} 31. Kd3 {[%emt 0:00:27]} Na3 {[%emt 0:00:20]} 32. h4 {[%emt 0:03:41]} d5 {[%emt 0:00:10]} 33. exd5 {[%emt 0:00:40]} Bxd5 {[%emt 0:00:05] Hoping for ...f5.} 34. Ne5 {[%emt 0:00:40] [#]} c4+ $1 {[%emt 0:00:09]} 35. Nexc4 {[%emt 0:00:19]} (35. Ke3 c3) 35... Nxc4 {[%emt 0:00:08]} 36. Nxc4 {[%emt 0:00:18]} Bxc4+ {[%emt 0:00:06] Black mates.} 37. Kxc4 {[%emt 0:00:15]} Kf6 {[%emt 0:00:04]} 38. Kxb4 {[%emt 0:00:21] K3P-KPP} Kf5 {[%emt 0:00:05]} 39. Kc5 {[%emt 0:00:26]} Kg4 {[%emt 0:00:06]} 40. Kd6 {[%emt 0:00:14]} Kxg3 {[%emt 0:00:06] KP-KP} 41. Ke5 {[%emt 0:00:23]} Kxh4 {[%emt 0:00:07]} 42. Kf6 {[%emt 0:00:11]} g5 {[%emt 0:00:04]} 43. Kxf7 {[%emt 0:00:14]} g4 {[%emt 0:00:05]} 44. Kg7 {[%emt 0:00:14]} g3 {[%emt 0:00:05]} 45. Kxh7 {[%emt 0:00:16] KP-K} g2 {[%emt 0:00:05]} 46. Kh6 {[%emt 0:00:16]} g1=Q {[%emt 0:00:07]} ({Inferior is} 46... g1=B 47. Kh7 $11) 47. Kh7 {[%emt 0:00:15]} Kh5 {[%emt 0:00:05]} 48. Kh8 {[%emt 0:00:20]} Kg6 {[%emt 0:00:05]} 49. Kg8 {[%emt 0:00:13]} Qf2 {[%emt 0:00:05]} 50. Kh8 {[%emt 0:00:00]} Qf8# {[%emt 0:00:00] Weighted Error Value: White=0.81/Black=0.15 (very precise) .  Loses game:     	White=1     	---        Mistake:       	White=1     	Black=1      Inaccurate:     	White=2     	---        OK:         	White=7     	Black=12     Best:        	White=2     	---} 0-1

[Event "WR Chess Masters Cup 2024"]
[Site "London"]
[Date "2024.10.15"]
[Round "2.2"]
[White "Erigaisi Arjun"]
[Black "Vidit, Santosh Gujrathi"]
[Result "1-0"]
[ECO "C67"]
[WhiteElo "2797"]
[BlackElo "2726"]
[Annotator "TA"]
[PlyCount "101"]
[EventDate "2024.10.12"]
[EventType "k.o."]
[EventCountry "ENG"]
[SourceTitle "playchess.com"]
[Source "ChessBase"]
[SourceQuality "1"]
[TimeControl "30/3600:20/1800:1800"]

{[%evp 20,101,0,0,0,0,0,0,0,-28,0,0,10,0,30,16,20,20,18,25,25,19,33,27,31,37,33,34,33,34,36,34,75,80,81,81,119,121,122,130,135,139,118,109,106,110,123,103,129,129,134,125,170,168,179,188,182,143,184,189,183,188,183,195,197,197,220,191,191,193,250,248,261,243,282,272,322,312,354,358,481,473,543,506]} 1. e4 {[%emt 0:00:16]} e5 {[%emt 0:00:40]} 2. Nf3 {[%emt 0:00:13]} Nc6 {[%emt 0:00:06]} 3. Bb5 {[%emt 0:00:05]} Nf6 {[%emt 0:00:19]} 4. O-O {[%emt 0:00:07]} Nxe4 {[%emt 0:00:07]} 5. d4 {[%emt 0:00:05]} Nd6 {[%emt 0:00:11]} 6. Ba4 {[%emt 0:00:06] C67: Ruy Lopez: Berlin Defence: 4 0-0 Nxe4.} e4 {[%emt 0:00:34]} 7. Re1 {[%emt 0:00:06]} Be7 {[%emt 0:00:15]} 8. Ne5 {[%emt 0:00:05]} O-O {[%emt 0:00:40]} 9. Nc3 {[%emt 0:00:06]} f5 {[%emt 0:00:23]} 10. Bf4 $5 {[%emt 0:00:07][%mdl 4] Leaves trodden paths.} Nxe5 {[%emt 0:09:01]} 11. dxe5 {[%emt 0:00:06]} Nf7 {[%emt 0:00:05]} 12. Bb3 {[%emt 0:00:05]} Kh8 {[%emt 0:02:48]} 13. Bxf7 {[%emt 0:00:11]} Rxf7 {[%emt 0:00:02]} 14. Qh5 {[%emt 0:00:07]} Kg8 $146 {[%emt 0:17:38]} ({Predecessor:} 14... Qf8 15. Rad1 b6 16. Nd5 Bd8 17. Bg5 g6 18. Qh4 Bxg5 19. Qxg5 d6 20. Nf4 Bb7 21. exd6 cxd6 {1-0 Naroditsky,D (2622)-Ippolito,D (2381) Charlotte op 2023 (6)}) 15. Nd5 {[%emt 0:06:40]} d6 {[%emt 0:00:34]} 16. Rad1 {[%emt 0:00:06]} (16. Nxe7+ {simplifies} Qxe7 17. exd6 cxd6 18. Rad1) 16... Be6 {[%emt 0:03:07]} 17. Nxe7+ {[%emt 0:00:30]} Qxe7 {[%emt 0:05:34]} 18. exd6 {[%emt 0:00:06]} cxd6 {[%emt 0:00:03]} 19. Rxd6 {[%emt 0:00:05]} Rd8 {[%emt 0:00:57]} 20. Red1 {[%emt 0:00:07]} Rxd6 {[%emt 0:00:09]} 21. Rxd6 {[%emt 0:00:08]} Rf8 {[%emt 0:01:53]} 22. Qd1 {[%emt 0:00:07]} Re8 {[%emt 0:00:17]} 23. Qd4 {[%emt 0:02:43]} a6 {[%emt 0:00:08]} 24. c4 {[%emt 0:02:20]} Qf7 {[%emt 0:00:22]} 25. b3 {[%emt 0:00:38]} Re7 {[%emt 0:00:48]} 26. Rd8+ {[%emt 0:05:35]} Re8 {[%emt 0:00:02]} 27. Be5 {[%emt 0:00:02]} g5 {[%emt 0:04:17]} 28. h4 {[%emt 0:03:34]} gxh4 {[%emt 0:00:54]} 29. Qd2 {[%emt 0:02:33]} f4 {[%emt 0:06:14]} 30. Bxf4 {[%emt 0:00:00]} Qe7 31. Rxe8+ {[%emt 0:06:59]} Qxe8 {[%emt 0:00:37]} 32. Bh6 {[%emt 0:11:09]} Qe7 {[%emt 0:04:56]} 33. Qf4 {[%emt 0:01:18]} Bd7 {[%emt 0:05:04]} 34. Bg5 {[%emt 0:08:19]} Qe6 {[%emt 0:01:15]} 35. Bxh4 {[%emt 0:00:38]} (35. Bh6 Qf5 36. Qxh4 Qg4 37. Qd8+ Kf7 38. Qf8+ Ke6) 35... e3 {[%emt 0:02:09]} 36. f3 {[%emt 0:03:20]} ({Don't play} 36. Qxe3 Qxe3 37. fxe3 Bf5 $16) 36... e2 {[%emt 0:01:37]} 37. Be1 {[%emt 0:00:40]} Qb6+ {[%emt 0:01:36]} 38. Kh2 {[%emt 0:00:00]} Qg6 39. Qd2 {[%emt 0:00:00]} Qe6 {[%emt 0:00:00]} 40. Kg1 {[%emt 0:00:00]} (40. Qg5+ Kf7 41. Qf4+ Ke8) 40... b5 {[%emt 0:00:00]} 41. c5 {[%emt 0:00:00]} a5 {[%emt 0:00:00]} 42. Kf2 {[%emt 0:00:00]} b4 {[%emt 0:00:00]} 43. Qg5+ {[%emt 0:00:00]} Kf7 {[%emt 0:00:00]} 44. Qf4+ {[%emt 0:00:00]} Kg6 {[%emt 0:00:00]} (44... Qf6 {keeps fighting.} 45. Qc7 Qh4+ 46. g3 (46. Kxe2 Qe7+ 47. Kf2 Bb5 $16) 46... Qh2+ 47. Ke3 Qh6+ 48. Kxe2 Qa6+ 49. Kf2 Ke8 50. Qb8+ Kf7) 45. Qg3+ $18 {[%emt 0:00:00]} Kf6 {[%emt 0:00:00]} 46. Qc7 {[%emt 0:00:00]} Qd5 {[%emt 0:00:00]} 47. Qxa5 {[%emt 0:00:00]} Qd4+ {[%emt 0:00:00]} 48. Kxe2 {[%emt 0:00:00]} Qe5+ {[%emt 0:00:00]} 49. Kf1 {[%emt 0:00:00]} Bf5 {[%emt 0:00:00]} 50. Qxb4 {[%emt 0:00:00]} Bd3+ {[%emt 0:00:00]} 51. Kf2 {[%emt 0:30:00]} 1-0

[Event "WR Chess Masters Cup 2024"]
[Site "London"]
[Date "2024.10.15"]
[Round "2.2"]
[White "Abdusattorov, Nodirbek"]
[Black "Vachier-Lagrave, Maxime"]
[Result "1/2-1/2"]
[ECO "D85"]
[WhiteElo "2783"]
[BlackElo "2735"]
[Annotator "TA"]
[PlyCount "60"]
[EventDate "2024.10.12"]
[EventType "k.o."]
[EventCountry "ENG"]
[SourceTitle "playchess.com"]
[Source "ChessBase"]
[SourceQuality "1"]
[TimeControl "30/3600:20/1800:1800"]

{[%evp 9,60,16,35,28,40,18,10,9,10,19,35,52,58,58,55,41,68,61,51,50,60,43,66,45,44,0,0,0,0,-6,0,-4,0,0,0,0,0,-28,-29,-43,0,0,0,0,0,0,0,0,0,0,0,0,0]} 1. d4 {[%emt 0:00:05]} Nf6 {[%emt 0:00:03][%cal Bg8f6,Bf6d5,Bd5b4,Bb4d3][%mdl 32]} 2. c4 {[%emt 0:00:08]} g6 {[%emt 0:00:03]} 3. Nc3 {[%emt 0:00:10]} d5 {[%emt 0:00:02]} 4. cxd5 {[%emt 0:00:08]} Nxd5 {[%emt 0:00:04]} 5. Bd2 {[%emt 0:00:07]} c5 {[%emt 0:02:33]} 6. dxc5 {[%emt 0:01:48]} Bg7 {[%emt 0:01:50]} 7. Qc1 {[%emt 0:00:13]} O-O {[%emt 0:03:43]} 8. e4 {[%emt 0:04:39] Prevents Bf5.} Nb4 {[%emt 0:03:16]} 9. a3 {[%emt 0:00:17]} Nd3+ {[%emt 0:00:04]} 10. Bxd3 {[%emt 0:00:07]} Qxd3 {[%emt 0:00:01]} 11. Nge2 $1 {[%emt 0:00:18]} Nd7 {[%emt 0:05:04]} 12. Be3 {[%emt 0:03:35]} Qc4 {[%emt 0:06:02]} 13. O-O {[%emt 0:01:17]} Nxc5 {[%emt 0:00:03] [#] ...Nb3 would now be deadly.} 14. Nd5 {[%emt 0:00:14]} Qxe2 {[%emt 0:00:05]} 15. Qxc5 {[%emt 0:04:22]} (15. Nxe7+ Kh8 16. Bxc5 (16. Qxc5 b6 $11) 16... Be6) 15... b6 {[%emt 0:01:13]} 16. Qxe7 {[%emt 0:08:55]} Qxb2 {[%emt 0:02:38][%cal Oc8e6]} 17. Bf4 {[%emt 0:00:48] [#] And now Rfb1 would win.} Be6 $1 {[%emt 0:03:25][%cal Oe6d5]} 18. Rab1 {[%emt 0:05:12]} Qd4 {[%emt 0:05:33][%csl LRd5,LRe4]} 19. Rb4 $132 {[%emt 0:02:02][%mdl 2048] White is not keeping still} Qd3 {[%emt 0:00:06]} 20. Nc7 {[%emt 0:09:17]} Bc4 {[%emt 0:01:08]} 21. Rxc4 $1 {[%emt 0:00:20]} ({Of course not} 21. Rc1 Rad8 22. h3 (22. Rbxc4 $2 Qd1+ 23. Rxd1 Rxd1#) 22... b5 $17 (22... Qxa3 23. Rcxc4 a5 24. Be5 $11)) 21... Qxc4 {[%emt 0:00:05]} 22. Nxa8 {[%emt 0:00:07]} Rxa8 {[%emt 0:00:03]} 23. Rd1 {[%emt 0:02:03]} Bf8 {[%emt 0:03:21]} 24. Qf6 {[%emt 0:03:57] White threatens Be5 and mate.} Qb3 {[%emt 0:01:25]} (24... Qxe4 $2 {loses.} 25. Be5 $18) 25. Rf1 {[%emt 0:01:06] White wants to mate with Be5. The position is equal.} Qe6 {[%emt 0:04:53]} ({Not} 25... Qxa3 26. Be5 h6 27. Qh8#) 26. Qxe6 {[%emt 0:00:01]} fxe6 {[%emt 0:00:00]} 27. a4 {[%emt 0:00:00]} Rc8 {[%emt 0:00:00]} 28. Rc1 {[%emt 0:00:00] Wards off Rc4} Rxc1+ {[%emt 0:00:00]} 29. Bxc1 {[%emt 0:00:00]} a6 {[%emt 0:00:00]} 30. Kf1 {[%emt 0:00:00]} Kf7 {[%emt 0:00:00] Weighted Error Value: White=0.06 (flawless) /Black=0.05 (flawless) .  Inaccurate:     	White=2     	Black=2      OK:         	White=11    	Black=10     Best:        	White=2     	Black=1      Strong:       	White=2     	Black=1} 1/2-1/2

[Event "WR Chess Masters Cup 2024"]
[Site "London"]
[Date "2024.10.15"]
[Round "2.2"]
[White "Firouzja, Alireza"]
[Black "Sadhwani, Raunak"]
[Result "1/2-1/2"]
[ECO "D41"]
[WhiteElo "2767"]
[BlackElo "2659"]
[Annotator "TA"]
[PlyCount "42"]
[EventDate "2024.10.12"]
[EventType "k.o."]
[EventCountry "ENG"]
[SourceTitle "playchess.com"]
[Source "ChessBase"]
[SourceQuality "1"]
[TimeControl "30/3600:20/1800:1800"]

{[%evp 11,42,15,25,21,23,0,37,35,41,46,42,35,42,31,37,45,56,50,43,43,51,37,43,43,40,34,57,0,39,0,57,0,45]} 1. d4 {[%emt 0:00:02]} Nf6 {[%emt 0:00:07]} 2. c4 {[%emt 0:00:05]} e6 {[%emt 0:00:04]} 3. Nf3 {[%emt 0:00:05]} d5 {[%emt 0:00:08]} 4. Nc3 {[%emt 0:00:07]} c5 {[%emt 0:00:13]} 5. cxd5 {[%emt 0:00:46]} cxd4 {[%emt 0:00:07]} 6. Qxd4 {[%emt 0:00:11]} exd5 {[%emt 0:00:07]} 7. e4 {[%emt 0:02:00]} dxe4 {[%emt 0:00:12]} 8. Qxd8+ {[%emt 0:00:07]} Kxd8 {[%emt 0:00:03]} 9. Ng5 {[%emt 0:00:09][%csl LRe4,LRf7] Weiß steht etwas besser.} Be6 {[%emt 0:00:05]} 10. Nxe6+ {[%emt 0:01:24]} fxe6 {[%emt 0:00:07]} 11. Bg5 {[%emt 0:00:31]} Nc6 {[%emt 0:04:03]} 12. O-O-O+ {[%emt 0:01:37]} Kc7 {[%emt 0:08:48]} 13. Bc4 {[%emt 0:03:45]} Re8 {[%emt 0:02:16]} 14. Rhe1 {[%emt 0:01:48][%cal Og5f6]} Bb4 {[%emt 0:03:19]} 15. Bxf6 {[%emt 0:00:09]} gxf6 {[%emt 0:00:10]} 16. Rxe4 {[%emt 0:00:05]} Bxc3 {[%emt 0:00:45]} 17. bxc3 {[%emt 0:00:05]} Nd8 {[%emt 0:00:44]} 18. Rde1 {[%emt 0:07:39]} Kd6 {[%emt 0:01:19]} 19. Rd1+ {[%emt 0:00:08]} Kc7 {[%emt 0:00:06]} 20. Rde1 {[%emt 0:00:03]} Kd6 {[%emt 0:00:04]} 21. Rd1+ {[%emt 0:00:03]} Kc7 {[%emt 0:00:03] Gewichteter Fehlerwert: Weiß=0.10 (sehr präzise) /Schwarz=0.03 (makellos) .  Ungenau:       	---       	Schwarz=1     OK:         	Weiß=8     	Schwarz=6     Bester:       	---       	Schwarz=2} 1/2-1/2

[Event "WR Chess Masters Cup 2024"]
[Site "London"]
[Date "2024.10.15"]
[Round "2.2"]
[White "Anand, Viswanathan"]
[Black "Praggnanandhaa R"]
[Result "1/2-1/2"]
[ECO "C01"]
[WhiteElo "2751"]
[BlackElo "2746"]
[Annotator "TA"]
[PlyCount "96"]
[EventDate "2024.10.12"]
[EventType "k.o."]
[EventCountry "ENG"]
[SourceTitle "playchess.com"]
[Source "ChessBase"]
[SourceQuality "1"]
[TimeControl "30/3600:20/1800:1800"]

{[%evp 9,96,4,9,10,14,6,16,21,27,0,8,6,8,10,10,10,0,4,4,6,6,3,25,4,15,0,15,0,0,0,0,-1,-7,0,0,0,0,-28,-19,-31,-23,-31,-32,-32,0,-16,-8,-14,-12,-29,-18,-21,-24,-91,-74,-62,-67,-64,-63,-141,-134,-164,-150,-132,-121,-125,-122,-126,-111,-128,-110,-129,-125,-123,-112,-129,-127,-104,-116,-120,-88,-80,0,-110,0,-97,0,-64,0]} 1. e4 {[%emt 0:00:03]} e6 {[%emt 0:01:02]} 2. d4 {[%emt 0:00:19]} d5 {[%emt 0:00:04]} 3. exd5 {[%emt 0:00:09]} exd5 {[%emt 0:00:27]} 4. Nf3 {[%emt 0:00:14]} Nc6 {[%emt 0:00:11]} 5. Bd3 {[%emt 0:00:42]} Nb4 {[%emt 0:03:06]} 6. Bb5+ {[%emt 0:05:22]} c6 {[%emt 0:00:19]} 7. Ba4 {[%emt 0:00:14]} a5 {[%emt 0:02:47]} 8. a3 {[%emt 0:02:44] The position is equal.} Na6 {[%emt 0:01:34]} 9. c3 {[%emt 0:00:55]} Bd6 {[%emt 0:01:34]} 10. O-O {[%emt 0:00:18]} Ne7 {[%emt 0:00:57]} 11. Bc2 {[%emt 0:01:17]} Bf5 {[%emt 0:06:44]} 12. Bxf5 {[%emt 0:02:18]} Nxf5 {[%emt 0:00:09]} 13. Re1+ {[%emt 0:00:15]} Ne7 {[%emt 0:00:27]} 14. b3 {[%emt 0:02:25]} O-O {[%emt 0:08:07]} 15. c4 {[%emt 0:00:14]} h6 {[%emt 0:04:00]} 16. Nc3 {[%emt 0:00:28]} Ng6 {[%emt 0:05:37]} 17. Qd3 {[%emt 0:07:14]} Nc7 {[%emt 0:01:11]} 18. g3 {[%emt 0:01:06]} Re8 {[%emt 0:01:10]} 19. Bd2 {[%emt 0:04:24]} Rxe1+ {[%emt 0:02:01]} 20. Bxe1 {[%emt 0:00:13]} Be7 {[%emt 0:03:36]} 21. Bd2 {[%emt 0:03:07]} Bf6 {[%emt 0:01:14]} 22. Re1 {[%emt 0:01:35]} Nf8 {[%emt 0:02:51]} 23. Ne2 {[%emt 0:03:43]} Nfe6 {[%emt 0:02:27]} 24. c5 {[%emt 0:00:11]} a4 {[%emt 0:03:38]} 25. b4 {[%emt 0:00:00]} Nb5 {[%emt 0:00:00]} 26. Bc1 {[%emt 0:00:00]} b6 {[%emt 0:00:00]} 27. Be3 {[%emt 0:00:00]} bxc5 {[%emt 0:00:00]} 28. bxc5 {[%emt 0:00:00]} Ng5 {[%emt 0:00:00]} 29. Nxg5 {[%emt 0:00:00]} Bxg5 {[%emt 0:00:00]} 30. Bxg5 {[%emt 0:00:00]} hxg5 {[%emt 0:00:00]} 31. Rb1 {[%emt 0:30:00]} (31. Nc3 $1 $11 {keeps the balance.} Nxa3 32. Ra1) 31... Qe8 {[%emt 0:30:00][%cal Ob5a3] Threatens to win with ...Nxa3!} 32. Rb2 {[%emt 0:00:00]} g6 {[%emt 0:00:00]} 33. Kg2 {[%emt 0:00:00]} Kg7 {[%emt 0:00:00]} 34. Ra2 {[%emt 0:00:00]} (34. h3 $15) 34... Qe6 $17 {[%emt 0:00:00]} 35. Nc3 {[%emt 0:00:00]} Nxc3 {[%emt 0:00:00]} 36. Qxc3 $19 {[%emt 0:00:00][%mdl 4096] Endgame. KQR-KQR} Qe4+ {[%emt 0:00:00]} 37. f3 {[%emt 0:00:00]} Qb1 {[%emt 0:00:00]} 38. Re2 {[%emt 0:00:00]} Rb8 {[%emt 0:00:00] Hoping for ...Rb3.} 39. Qd2 {[%emt 0:00:00] [#]} Qf5 $1 {[%emt 0:00:00]} 40. Re5 {[%emt 0:00:00] [#]} Qf6 {[%emt 0:00:00]} 41. Rxg5 {[%emt 0:00:00]} Rb3 {[%emt 0:00:00][%csl LRa3,LRf3]} 42. f4 {[%emt 0:00:00]} Rxa3 {[%emt 0:00:00]} 43. Re5 {[%emt 0:00:00]} Rb3 {[%emt 0:00:00]} 44. Qa2 {[%emt 0:00:00]} Rb4 {[%emt 0:00:00]} 45. Qd2 {[%emt 0:00:00]} Rb3 {[%emt 0:00:00]} 46. Qa2 $1 {[%emt 0:00:00]} Rb4 {[%emt 0:00:00]} 47. Qd2 $1 {[%emt 0:00:00]} Rc4 {[%emt 0:00:00]} ({Black should try} 47... Rb5 $17 {Strongly threatening ...Qd8.} 48. Qa2 Rb4) 48. Qd3 {[%emt 0:00:00]} ({Better is} 48. Qb2 $11) 48... Rb4 {[%emt 0:00:00] Weighted Error Value: White=0.10 (very precise) /Black=0.12 (very precise) .  Mistake:       	White=3     	Black=2      Inaccurate:     	White=1     	Black=1      OK:         	White=16    	Black=15     Best:        	White=4     	Black=4      Strong:       	White=2     	Black=1} (48... Qd8 $1 $15 49. Qe2 a3 (49... Rxd4 50. Qb2 $11)) 1/2-1/2